[Event "Bangabandhu Premier Div League 2022"]
[Site "Dhaka"]
[Date "2022.12.09"]
[Round "10.6"]
[White "Ghosh, Diptayan"]
[Black "Pantsulaia, Levan"]
[Result "1/2-1/2"]
[ECO "B41"]
[WhiteElo "2544"]
[BlackElo "2597"]
[Annotator "TA"]
[PlyCount "70"]
[EventDate "2022.12.01"]
[EventCountry "BAN"]
[SourceTitle "playchess.com"]
[Source "ChessBase"]
[SourceQuality "1"]
[TimeControl "40/5400+30:1800+30"]

{[%evp 15,70,54,54,53,46,50,58,59,85,53,47,35,27,35,43,43,34,26,27,0,41,41,41,40,39,41,102,102,102,96,96,96,96,96,96,96,96,96,96,96,96,96,96,46,96,43,102,43,73,31,73,0,73,0,73,0,73]} 1. e4 {[%emt 0:00:23]} c5 {[%emt 0:00:31]} 2. Nf3 {[%emt 0:00:05]} e6 {[%emt 0:00:06]} 3. d4 {[%emt 0:00:07]} cxd4 {[%emt 0:00:06]} 4. Nxd4 {[%emt 0:00:04]} a6 {[%emt 0:00:07]} 5. c4 {[%emt 0:00:03]} Nf6 {[%emt 0:01:21]} 6. Nc3 {[%emt 0:00:07]} Qc7 {[%emt 1:31:19]} 7. Be2 {[%emt 1:33:11]} Nc6 {[%emt 0:00:00]} 8. O-O Bb4 {[%emt 0:01:00]} 9. Bg5 {[%emt 0:01:00] is the legacy move (9.Nxc6). B41: Sicilian: Kan Variation: 5 c4.} Bxc3 {[%emt 0:00:30]} 10. Bxf6 {[%emt 0:00:00]} ({But not} 10. bxc3 Nxe4 11. Qc1 O-O $15) 10... gxf6 {[%emt 0:00:00]} 11. bxc3 {[%emt 0:01:00] White is slightly better.} d6 {[%emt 0:01:00]} 12. Nxc6 {[%emt 0:00:30]} Qxc6 {[%emt 0:00:30]} 13. Qd4 {[%emt 0:00:30]} Ke7 {[%emt 0:00:00]} 14. Rab1 {[%emt 0:00:30] [#]} e5 $146 {[%emt 0:01:00]} ({Predecessor:} 14... Bd7 15. Rfd1 Qc7 16. f4 Rad8 17. Bf3 Bc8 18. Be2 Bd7 19. Qb6 Qxb6+ 20. Rxb6 Bc6 {½-½ (27) Makarov,M (2530)-Marin,M (2530) Elista 1998}) 15. Qe3 {[%emt 0:00:00]} Qc5 {[%emt 0:00:00]} 16. Qxc5 {[%emt 0:00:00]} dxc5 {[%emt 0:00:00]} 17. Rfd1 {[%emt 0:01:30]} Rd8 {[%emt 0:00:00]} 18. Rxd8 {[%emt 0:00:00]} Kxd8 $14 {[%emt 0:00:00][%mdl 4096] Endgame KRB-KRB} 19. Rb6 {[%emt 0:00:00]} Ke7 {[%emt 0:00:00]} 20. h3 {[%emt 0:01:30][%cal Bh2h3,Bh3h4][%mdl 32]} Be6 {[%emt 0:00:00]} (20... Rb8 $14) 21. Rxb7+ $16 {[%emt 0:00:00]} Kd6 {[%emt 0:03:30]} 22. Kf1 {[%emt 0:00:00] White is more active.} Kc6 {[%emt 0:00:00]} 23. Rb2 {[%emt 0:00:00]} Kc7 {[%emt 0:00:00]} 24. h4 {[%emt 0:02:00]} Rb8 {[%emt 0:01:30]} 25. Rxb8 {[%emt 0:00:00]} Kxb8 {[%emt 0:00:00] KB-KB} 26. Ke1 {[%emt 0:00:00]} Kc7 {[%emt 0:00:00]} 27. Kd2 {[%emt 0:00:00]} Kd6 {[%emt 0:00:00]} 28. Ke3 {[%emt 0:02:00]} h6 {[%emt 0:00:00]} 29. g3 {[%emt 0:00:00]} (29. Bd3 $16) 29... Ke7 {[%emt 0:00:00]} ({Black should play} 29... f5 $1 $14) 30. f4 {[%emt 0:00:00]} (30. g4 $16) 30... Kd6 {[%emt 0:00:00]} (30... exf4+ $14 31. gxf4 (31. Kxf4 Kd6 $16) 31... f5) 31. a3 {[%emt 0:00:00]} (31. f5 $16 Bd7 32. Bh5) 31... a5 {[%emt 0:00:00]} 32. Kd2 {[%emt 0:02:00]} (32. f5 $5 {[%cal Rf5e6]} Bd7 33. Kf3 $16) 32... Bd7 {[%emt 0:00:00]} 33. Ke3 {[%emt 0:00:00]} Be6 {[%emt 0:00:00]} 34. Kd2 {[%emt 0:00:00]} (34. f5 $5 {[%cal Rf5e6]} Bd7 35. Bd3 $14) 34... Bd7 {[%emt 0:00:00]} 35. Ke3 {[%emt 0:00:00]} Be6 {[%emt 0:00:00] Weighted Error Value: White=0.18 (very precise) /Black=0.12 (very precise)} 1/2-1/2

[Event "Bangabandhu Premier Div League 2022"]
[Site "Dhaka"]
[Date "2022.12.09"]
[Round "10.6"]
[White "Koustav Chatterjee"]
[Black "Chanda, Sandipan"]
[Result "1-0"]
[ECO "A87"]
[WhiteElo "2496"]
[BlackElo "2474"]
[Annotator "TA"]
[PlyCount "93"]
[EventDate "2022.11.30"]
[EventType "team-tourn"]
[EventCountry "BAN"]
[SourceTitle "playchess.com"]
[Source "ChessBase"]
[SourceQuality "1"]
[TimeControl "40/5400+30:1800+30"]

{[%evp 12,93,46,37,40,31,25,26,39,44,32,47,34,48,43,39,43,41,47,50,51,41,45,7,6,0,0,0,0,-41,-39,-36,-7,-82,-75,-75,-60,-53,19,10,56,66,101,102,109,104,93,109,109,97,124,110,182,226,244,201,197,158,152,146,140,141,427,47,47,0,427,424,427,418,5495,5493,5410,5409,5391,0,5391,5381,5357,5314,4882,3479,1237,1141]} 1. d4 {[%emt 0:04:07]} f5 {[%emt 0:00:18]} 2. Nf3 {[%emt 0:00:10]} Nf6 {[%emt 0:00:08]} 3. g3 {[%emt 0:00:04]} g6 {[%emt 0:00:07]} 4. Bg2 {[%emt 0:00:04]} Bg7 {[%emt 0:00:05]} 5. O-O {[%emt 0:00:05]} O-O {[%emt 0:00:09]} 6. c4 {[%emt 0:00:03]} e6 {[%emt 0:00:05]} 7. Nc3 {[%emt 0:00:05]} d5 {[%emt 0:00:07] A87: Dutch Defence: Leningrad System: 5 Nf3.} 8. cxd5 {[%emt 0:00:36]} exd5 {[%emt 0:00:08]} 9. Bg5 {[%emt 0:00:04]} c6 {[%emt 0:00:38] White has an edge.} 10. b4 {[%emt 0:00:08] [#]} Qd6 $146 {[%emt 0:00:05]} ({Predecessor:} 10... Be6 11. Ne5 Nbd7 12. e3 Qb6 13. Bxf6 Nxf6 14. Qb3 Rae8 15. b5 Ne4 16. Nxe4 dxe4 {0-1 (34) Nguyen,N (2639)-Sandipan,C (2511) Xingtai 2019}) 11. Qb3 {[%emt 0:04:14]} Ne4 12. b5 {[%emt 0:26:45]} Nxg5 {[%emt 0:07:49]} 13. Nxg5 {[%emt 0:00:06] Hoping for bxc6.} h6 14. bxc6 {[%emt 0:21:01]} bxc6 {[%emt 0:00:15] [#]} 15. Nxd5 $1 {[%emt 0:00:23] White wants to mate with Nf6+.} Kh8 {[%emt 0:00:05]} (15... hxg5 16. Nc7+ Kh8 17. Nxa8 $16) 16. Nh3 {[%emt 0:02:47] Pair of Knights!} Na6 {[%emt 0:00:06][%cal Oa8b8] White must now prevent ...Rb8!} (16... cxd5 $2 17. Qxd5 Qxd5 18. Bxd5 $18) 17. Nc3 {[%emt 0:10:28]} (17. Ndf4 {with more complications.} Rb8 18. Qa4 g5 19. Rac1) 17... Rb8 $132 {[%emt 0:02:50][%mdl 2048] Prevents Nb5. Black has counterplay} 18. Qd1 {[%emt 0:03:51]} g5 {[%emt 0:05:06]} 19. e3 {[%emt 0:01:48]} f4 {[%emt 0:14:57][%cal Of4f3]} 20. Re1 {[%emt 0:03:49]} (20. gxf4 g4 21. Ne4 Qe7 $15) 20... f3 {[%emt 0:02:06]} 21. Bf1 {[%emt 0:00:29]} c5 {[%emt 0:01:48]} 22. Rb1 {[%emt 0:05:01]} (22. Ne4 Qg6 23. Nd2 Nb4 24. Nxf3 Bxh3 25. Bxh3 Nc2 $17) (22. Rc1 $1 $11) 22... cxd4 $17 {[%emt 0:11:42]} 23. Nb5 {[%emt 0:02:41]} Qg6 {[%emt 0:00:32] Threatens to win with ...Bf5.} 24. Nxd4 {[%emt 0:07:11]} Qh5 {[%emt 0:10:26]} ({Black should try} 24... Rxb1 $15 25. Qxb1 Qxb1 26. Rxb1 Bxd4 27. exd4 Rd8) 25. Kh1 $11 {[%emt 0:04:53][%cal Od1c2]} Rxb1 {[%emt 0:03:54]} (25... Rb6 $11 {deserves consideration.} 26. Rxb6 axb6) 26. Qxb1 $14 {[%emt 0:00:01][%cal Oe1c1]} Nc5 {[%emt 0:00:14]} 27. Rc1 {[%emt 0:01:11]} Bxh3 {[%emt 0:20:35]} 28. Rxc5 {[%emt 0:00:02]} Bxf1 {[%emt 0:00:37]} 29. Qxf1 {[%emt 0:00:02]} Bxd4 {[%emt 0:00:55]} 30. exd4 $16 {[%emt 0:00:02][%mdl 4096] Endgame KQR-KQR} Qg4 {[%emt 0:00:06]} 31. d5 {[%emt 0:01:29] Strongly threatening h3.} Qd4 {[%emt 0:01:47] Against h3} (31... Re8 $16 {was worth a try.}) 32. Rc7 $1 $18 {[%emt 0:01:47]} Re8 {[%emt 0:05:48]} 33. h3 {[%emt 0:00:47] Qb1 is the strong threat.} Qxd5 {[%emt 0:02:21]} 34. Qb1 {[%emt 0:00:35][%csl Gc7][%cal Rb1h7]} (34. Rxa7 $6 Qd4 35. Rc7 Qe5 $16) 34... Qe4 {[%emt 0:00:17] Against Qh7+} 35. Qb2+ {[%emt 0:00:18]} Qe5 {[%emt 0:00:09]} 36. Qc2 {[%emt 0:00:45][%csl Gc7][%cal Rc2h7]} (36. Qxe5+ Rxe5 37. Rxa7 h5 $14) 36... Qe4 {[%emt 0:00:43][%mdl 8192] [#] Prevents Qh7+.} (36... Re7 $16 37. Rc6 (37. Rxe7 Qxe7 38. Kh2 Qf7 $16) 37... Re6) 37. Qc3+ $2 {[%emt 0:00:26]} (37. Qc5 $1 $18) 37... Qe5 $14 {[%emt 0:00:05]} 38. Qc2 $2 {[%emt 0:00:25][%mdl 8192]} (38. a3 $14) 38... Qe4 $1 $18 {[%emt 0:00:04] [#]} ({But not} 38... Re7 39. Rc6 (39. Rxe7 Qxe7 40. Kh2 Qf7 $16) 39... Re6 40. Kh2 $16) 39. Qc5 $1 {[%emt 0:00:41]} a5 {[%emt 0:08:38]} 40. Kh2 {[%emt 0:00:08]} ({And not} 40. Qxa5 Qe1+ 41. Qxe1 Rxe1+ 42. Kh2 Re2 $11) 40... Qe5 {[%emt 0:02:28] Against Qd6} (40... Kg8 $142 41. Qb6 (41. Qc3 Re7 $16) 41... Re6 42. Rc8+ Kf7 43. Qxa5 Kg6) 41. Qb6 {[%emt 0:04:51]} Re6 {[%emt 0:02:37]} 42. Qb7 {[%emt 0:00:36]} Kg8 {[%emt 0:01:04]} 43. Qc8+ {[%emt 0:00:11]} Re8 {[%emt 0:00:04]} 44. Qd7 {[%emt 0:00:04] Intending Qh7+ and mate. White is clearly winning.} Qxc7 {[%emt 0:00:25]} 45. Qxc7 {[%emt 0:00:05]} Re2 {[%emt 0:00:03]} 46. Qc5 {[%emt 0:00:13]} Kg7 {[%emt 0:00:20]} 47. g4 {[%emt 0:00:05] Weighted Error Value: White=0.31/Black=0.21 (precise)} 1-0

[Event "Bangabandhu Premier Div League 2022"]
[Site "Dhaka"]
[Date "2022.12.09"]
[Round "10.7"]
[White "Rakhmanov, Aleksandr"]
[Black "Mitrabha, Guha"]
[Result "1/2-1/2"]
[ECO "E49"]
[WhiteElo "2630"]
[BlackElo "2474"]
[Annotator "TA"]
[PlyCount "104"]
[EventDate "2022.12.01"]
[EventCountry "BAN"]
[SourceTitle "playchess.com"]
[Source "ChessBase"]
[SourceQuality "1"]
[TimeControl "40/5400+30:1800+30"]

{[%evp 19,104,-10,-10,-8,-6,0,-14,-7,0,-31,-26,-11,11,19,18,17,12,12,8,13,6,7,8,14,0,0,0,0,14,8,29,29,38,38,38,38,39,10,10,10,23,2,4,5,12,0,0,0,0,0,32,32,31,16,25,8,11,0,0,0,0,0,0,0,0,0,0,2,18,2,2,2,2,2,2,2,8,2,2,2,2,2,15,15,30,30,31]} 1. d4 {[%emt 0:00:03]} Nf6 {[%emt 0:00:30]} 2. c4 {[%emt 0:00:07]} e6 {[%emt 0:00:21]} 3. Nc3 {[%emt 1:31:50]} Bb4 {[%emt 0:00:22]} 4. e3 {[%emt 0:00:00]} O-O {[%emt 0:00:23]} 5. Bd3 {[%emt 0:00:00]} d5 {[%emt 1:31:24]} 6. a3 {[%emt 0:00:00]} Bxc3+ {[%emt 0:00:00]} 7. bxc3 {[%emt 0:00:00]} dxc4 {[%emt 0:00:00]} 8. Bxc4 {[%emt 0:02:30]} c5 {[%emt 0:00:00]} 9. Ne2 {[%emt 0:00:00]} Qc7 {[%emt 0:02:00]} 10. Bd3 {[%emt 0:00:00]} Nc6 {[%emt 0:00:00] 10...b6 is the recent fashion.} 11. O-O {[%emt 0:01:30] E49: Nimzo-Indian: Rubinstein: 5 Bd3 d5 6 a3 Bxc3+ 7 bxc3.} (11. dxc5 Ne5 $15) 11... e5 {[%emt 0:01:00]} ({But not} 11... Ng4 12. Nf4 (12. dxc5 $2 Qxh2#) 12... Nf6 13. Bb2 $14 (13. dxc5 Rd8 $11)) (11... c4 12. Bxc4 e5 13. Bd3 $16) 12. Ng3 {[%emt 0:00:30]} Be6 {[%emt 0:00:30]} 13. f4 {[%emt 0:00:30] The position is equal.} exd4 {[%emt 0:00:30]} 14. cxd4 {[%emt 0:00:30]} (14. f5 $5 {[%cal Rf5e6]} Bd7 15. cxd4 $11) 14... Rad8 {[%emt 0:00:30]} 15. Rb1 {[%emt 0:00:30]} Rfe8 {[%emt 0:00:00]} 16. Nh5 {[%emt 0:00:30]} Nxh5 {[%emt 0:00:00]} 17. Qxh5 {[%emt 0:00:30]} f5 $1 {[%emt 0:00:00]} 18. dxc5 {[%emt 0:00:30]} (18. Bxf5 Bxf5 19. Qxf5 cxd4) ({Reject} 18. d5 g6 19. Qe2 Bxd5 $15) 18... Bf7 {[%emt 0:02:00]} 19. Qe2 {[%emt 0:00:30] [#]} ({Much weaker is} 19. Qxf5 Bg6 20. Bc4+ Kh8 $17) 19... Nd4 $146 {[%emt 0:00:00] Against Qc2} ({Predecessor:} 19... Rd5 20. Qc2 Ne7 21. Bb2 Rxc5 22. Qa4 Nc6 23. Rfe1 Qd6 24. Rbd1 Rd5 25. Qc2 Rd8 {1-0 (56) Sarana,A (2670)-Vokhidov,S (2534) Chess.com INT 2022}) 20. Qf2 {[%emt 0:00:30]} Nf3+ {[%emt 0:01:00][%mdl 64] [#] Discovered Attack} 21. Qxf3 {[%emt 0:00:00]} Rxd3 {[%emt 0:00:00]} 22. Rxb7 {[%emt 0:01:00]} Qxc5 {[%emt 0:01:00] Threatens to win with ...Bd5.} 23. Qf2 {[%emt 0:00:30]} Rc3 {[%emt 0:00:30]} 24. Bb2 {[%emt 0:00:00][%cal Bc1b2,Bb2d4,Bd4c5][%mdl 32]} Rc2 {[%emt 0:00:30]} (24... Rcxe3 $5 {[%cal Rf7c4]} 25. Be5 Qxa3 $14) 25. Bd4 {[%emt 0:01:00]} Rxf2 {[%emt 0:00:30]} 26. Bxc5 {[%emt 0:00:00]} Rxg2+ {[%emt 0:00:00][%mdl 64] [#] Decoy} 27. Kxg2 {[%emt 0:00:00]} Bd5+ {[%emt 0:01:00]} 28. Kg3 Bxb7 $11 {[%mdl 4096] Endgame KRB-KRB} 29. Rd1 {[%emt 0:02:00]} a6 {[%emt 0:01:00]} 30. Rd7 {[%emt 0:00:00]} Bc6 {[%emt 0:00:00]} 31. Rd6 {[%emt 0:01:00]} Bb5 {[%emt 0:00:00]} 32. Rd5 {[%emt 0:00:30]} g6 {[%emt 0:01:30]} 33. Rd6 {[%emt 0:00:30]} Rc8 {[%emt 0:00:00]} 34. Bd4 {[%emt 0:00:30]} Kf7 {[%emt 0:01:00]} 35. Rb6 {[%emt 0:00:30]} Rc7 {[%emt 0:00:30]} 36. h4 {[%emt 0:00:30]} Be2 {[%emt 0:00:30]} 37. Be5 {[%emt 0:00:30]} Rd7 {[%emt 0:00:30]} 38. Kf2 {[%emt 0:00:00]} Rd2 {[%emt 0:00:30]} 39. Ke1 {[%emt 0:01:00]} Ra2 {[%emt 0:00:30]} 40. Rb4 {[%emt 0:00:30] And now Bb2 would win.} Rc2 {[%emt 0:00:00]} 41. Rb7+ {[%emt 0:11:42]} Ke6 {[%emt 0:31:00]} 42. Rxh7 {[%emt 0:00:52]} Bh5 {[%emt 0:00:30]} 43. Ra7 {[%emt 0:18:56]} Kd5 {[%emt 0:00:30]} 44. Rd7+ {[%emt 0:00:00]} Ke4 {[%emt 0:00:00]} 45. Rd2 {[%emt 0:00:00] Inhibits Re2+.} Rxd2 {[%emt 0:00:00]} 46. Kxd2 {[%emt 0:00:00] KB-KB} Bg4 {[%emt 0:01:30]} 47. Bd4 {[%emt 0:00:00]} Bh3 {[%emt 0:00:00]} 48. Kc3 {[%emt 0:02:30]} Kf3 {[%emt 0:00:00]} 49. Bb6 {[%emt 0:00:00]} Bf1 {[%emt 0:01:30]} 50. Kd4 {[%emt 0:00:00]} Kg4 {[%emt 0:00:00]} 51. Bd8 {[%emt 0:01:30]} Bg2 {[%emt 0:00:00]} 52. Ke5 {[%emt 0:00:00]} Kh5 {[%emt 0:01:30] Weighted Error Value: White=0.04 (flawless) /Black=0.04 (flawless)} 1/2-1/2

[Event "Bangabandhu Premier Div League 2022"]
[Site "Dhaka"]
[Date "2022.12.09"]
[Round "10.7"]
[White "Harsha Bharathakoti"]
[Black "Rahman, Syed Mahfuzur"]
[Result "1-0"]
[ECO "A06"]
[WhiteElo "2582"]
[BlackElo "2130"]
[Annotator "TA"]
[PlyCount "53"]
[EventDate "2022.11.30"]
[EventType "team-tourn"]
[EventCountry "BAN"]
[SourceTitle "playchess.com"]
[Source "ChessBase"]
[SourceQuality "1"]
[TimeControl "40/5400+30:1800+30"]

{[%evp 9,53,15,15,26,25,25,26,17,28,16,0,3,7,8,10,12,0,-16,0,0,0,0,0,0,0,3,33,16,110,104,134,141,349,342,344,344,434,452,455,446,647,591,1118,1102,1164,1021]} 1. Nf3 {[%emt 0:00:07]} d5 {[%emt 0:00:16]} 2. e3 {[%emt 0:02:21]} c5 {[%emt 0:01:25]} 3. b3 {[%emt 0:01:39]} Nc6 {[%emt 0:00:08]} 4. Bb5 {[%emt 0:04:23]} Bg4 {[%emt 0:01:49]} 5. h3 {[%emt 0:01:44]} Bd7 {[%emt 0:09:33]} 6. Bb2 {[%emt 0:01:47] A06: Réti Opening: 1 Nf3 d5.} Nf6 {[%emt 0:01:22]} 7. O-O {[%emt 0:02:45]} g6 {[%emt 0:04:46] [#]} 8. Nc3 $146 {[%emt 0:19:11][%cal Oc3d5] Black must now prevent Nxd5! White has an edge.} ({Predecessor:} 8. Bxf6 exf6 9. d4 a6 10. Be2 Be6 11. c3 Bd6 12. dxc5 Bxc5 13. Nbd2 O-O 14. b4 {1-0 (82) Birke,A (2206)-Schoebel Kroehn,L (1969) Germany 2019}) 8... a6 {[%emt 0:05:28]} 9. Be2 {[%emt 0:02:12][%cal Oc3d5] aiming for Nxd5!} e5 {[%emt 0:06:45][%cal Be7e5,Be5e4][%mdl 32]} 10. d4 {[%emt 0:08:24]} cxd4 {[%emt 0:00:27]} 11. exd4 {[%emt 0:00:03]} e4 {[%emt 0:00:51]} 12. Ne5 {[%emt 0:00:04]} Bd6 {[%emt 0:17:24]} 13. f4 {[%emt 0:12:17]} O-O {[%emt 0:02:51]} 14. Qd2 {[%emt 0:00:04]} Rc8 {[%emt 0:00:20][%cal Oc6d4]} 15. Nd1 {[%emt 0:01:06]} Ne7 {[%emt 0:09:20]} 16. Ne3 {[%emt 0:08:23]} Ne8 {[%emt 0:03:25]} 17. c4 {[%emt 0:05:52][%cal Bc2c4,Bc4d5,Bd5d6][%mdl 32]} f6 {[%emt 0:02:08] Inhibits g4.} 18. cxd5 {[%emt 0:00:05]} (18. g4 {simplifies} Be6 19. f5 dxc4 20. Bxc4 Bxc4 21. N5xc4 b5 22. Nxd6 Qxd6 23. Qg2) 18... fxe5 {[%emt 0:02:58]} (18... b5 $11) 19. fxe5 $16 {[%emt 0:01:58]} Rxf1+ {[%emt 0:01:30]} 20. Rxf1 {[%emt 0:00:03]} Bb8 $2 {[%emt 0:04:04] [#] This costs Black the game.} (20... Nf5 $16) 21. d6 $18 {[%emt 0:04:17]} Nf5 {[%emt 0:01:03]} 22. Bc4+ {[%emt 0:03:36]} Rxc4 {[%emt 0:01:07]} 23. bxc4 {[%emt 0:00:02][%cal Bb3c4,Bc4c5][%mdl 32] White is clearly winning.} ({Not} 23. Nxc4 b5 $16) 23... Qg5 {[%emt 0:01:31]} 24. Bc1 {[%emt 0:00:09]} Ng3 {[%emt 0:16:18]} (24... Qxe3+ $142 25. Qxe3 Nxe3) 25. Rf2 {[%emt 0:01:44]} Ba7 {[%emt 0:01:56]} 26. c5 {[%emt 0:01:54]} h5 {[%emt 0:02:31]} 27. Qb2 {[%emt 0:02:54] Weighted Error Value: White=0.03 (flawless) /Black=0.47} 1-0

[Event "Bangabandhu Premier Div League 2022"]
[Site "Dhaka"]
[Date "2022.12.09"]
[Round "10.8"]
[White "Mohammad Nubairshah Shaikh"]
[Black "Mehdi Hasan Parag"]
[Result "1-0"]
[ECO "A34"]
[WhiteElo "2439"]
[BlackElo "2185"]
[Annotator "TA"]
[PlyCount "39"]
[EventDate "2022.11.30"]
[EventType "team-tourn"]
[EventCountry "BAN"]
[SourceTitle "playchess.com"]
[Source "ChessBase"]
[SourceQuality "1"]
[TimeControl "40/5400+30:1800+30"]

{[%evp 10,39,23,21,33,16,60,41,68,68,69,58,105,116,151,165,156,155,158,152,135,141,166,163,198,192,192,186,177,191,600,583]} 1. Nf3 {[%emt 0:04:16]} c5 {[%emt 0:00:35]} 2. c4 {[%emt 0:00:09]} Nc6 {[%emt 0:00:04]} 3. Nc3 {[%emt 0:00:03]} Nf6 {[%emt 0:00:21]} 4. g3 {[%emt 0:00:05]} e5 {[%emt 0:01:01]} 5. Bg2 {[%emt 0:00:05]} d6 {[%emt 0:00:14]} 6. O-O {[%emt 0:00:05]} Be6 {[%emt 0:00:47] A34: Symmetrical English: 2 Nc3, lines with ...d5.} 7. d3 {[%emt 0:00:16]} g6 {[%emt 0:00:22]} 8. a3 {[%emt 0:05:09][%cal Ob2b4]} Bg7 {[%emt 0:00:41] White is slightly better.} 9. b4 {[%emt 0:03:23]} O-O {[%emt 0:02:36]} 10. Rb1 {[%emt 0:13:38]} b6 {[%emt 0:04:12] [#]} (10... Rb8 $14) 11. Ng5 $146 {[%emt 0:01:39]} ({Predecessor:} 11. Bg5 Rc8 12. Nd2 h6 13. Bxf6 Bxf6 14. e3 Bg7 15. Qa4 Bd7 16. b5 Na5 17. Nb3 Nxb3 18. Qxb3 {1-0 (33) Fernandez,D (2466)-Primbetov,K (2207) Chess.com INT 2020}) 11... Rc8 {[%emt 0:01:00]} 12. Nxe6 {[%emt 0:02:38] White is more active.} fxe6 {[%emt 0:00:03]} 13. bxc5 {[%emt 0:00:22]} bxc5 {[%emt 0:01:12]} 14. Qa4 {[%emt 0:03:28]} Qd7 {[%emt 0:01:16]} 15. Bd2 {[%emt 0:09:31][%cal Bc1d2,Bd2g5,Bg5d8][%mdl 32]} Rf7 {[%emt 0:00:54]} 16. Bxc6 {[%emt 0:18:38]} Rxc6 {[%emt 0:01:08]} 17. Rb8+ {[%emt 0:00:02]} Bf8 {[%emt 0:01:32]} 18. Rfb1 {[%emt 0:03:38] Against Rb6} Kg7 {[%emt 0:03:55]} 19. Bg5 {[%emt 0:06:34]} Ng8 {[%emt 0:07:04] [#]} (19... Rc7 20. Bxf6+ Rxf6) 20. Bd8 {[%emt 0:05:08] White took control after the opening.   Weighted Error Value: White=0.03 (flawless) /Black=0.61} 1-0

[Event "Bangabandhu Premier Div League 2022"]
[Site "Dhaka"]
[Date "2022.12.09"]
[Round "10.8"]
[White "Chatterjee, Debaraj"]
[Black "Zia, Tahsin Tajwar"]
[Result "0-1"]
[ECO "E11"]
[WhiteElo "2196"]
[BlackElo "2241"]
[Annotator "TA"]
[PlyCount "92"]
[EventDate "2022.12.01"]
[EventCountry "BAN"]
[SourceTitle "playchess.com"]
[Source "ChessBase"]
[SourceQuality "1"]
[TimeControl "40/5400+30:1800+30"]

{[%evp 17,92,7,8,10,13,-18,0,6,6,-34,-27,-52,-40,-70,-72,-74,-50,-81,-64,-112,-132,-133,-116,-202,-152,-155,-153,-232,-155,-160,-163,-154,-148,-149,-87,-90,-90,-141,-62,-192,-93,-183,-37,-62,-74,-119,-72,-70,-72,-117,-98,-205,-215,-197,-208,-206,-218,-481,-475,-548,-543,-539,-497,-719,-715,-774,-750,-836,-836,-1149,-1038,-2281,-2230,-6407,-6107,-2670,-2502]} 1. d4 {[%emt 0:01:42]} d5 {[%emt 0:00:13]} 2. c4 {[%emt 0:00:13]} e6 {[%emt 0:00:06]} 3. Nf3 {[%emt 0:00:06]} Nf6 {[%emt 0:00:12]} 4. g3 {[%emt 0:00:09]} Bb4+ {[%emt 0:00:07]} 5. Bd2 {[%emt 0:00:26]} a5 {[%emt 0:00:07]} 6. Bg2 {[%emt 0:01:00]} O-O {[%emt 1:32:45]} 7. a3 {[%emt 0:02:11]} Be7 {[%emt 0:00:00]} 8. Qc2 {[%emt 0:00:20]} c6 {[%emt 0:00:00]} 9. O-O {[%emt 0:00:22]} Nbd7 {[%emt 0:00:00]} 10. Bf4 {[%emt 0:01:57] E11: Bogo-Indian.} b6 {[%emt 0:02:00]} 11. Nc3 {[%emt 0:06:25]} Ba6 {[%emt 0:00:30]} (11... dxc4 {keeps more tension.} 12. Nd2 Nd5 13. Nxc4 Ba6) 12. cxd5 {[%emt 0:18:33] The position is equal.} cxd5 {[%emt 0:00:30] [#]} 13. Rac1 $146 ({Predecessor:} 13. a4 Rc8 14. Qd1 Rc4 15. Rc1 Qa8 16. b3 Rc6 17. Nb5 Rxc1 18. Qxc1 Rc8 19. Qb2 Bxb5 20. axb5 {½-½ (44) Andreikin,D (2729)-Le,Q (2709) Chess.com INT 2022}) 13... Rc8 {[%emt 0:00:30]} 14. Qd1 {[%emt 0:06:54]} b5 {[%emt 0:00:30]} 15. a4 b4 {[%emt 0:00:00]} 16. Nb5 {[%emt 0:58:12]} Qb6 {[%emt 0:00:00]} (16... Rxc1 {simplifies} 17. Bxc1 Qb6 18. Qd3 Ne4) 17. Qd3 {[%emt 0:00:00]} Ne4 {[%emt 0:01:30]} 18. Nd2 {[%emt 0:00:00]} (18. Rfe1 $15 {was preferrable.}) 18... g5 $17 {[%emt 0:00:30]} 19. Be3 {[%emt 0:00:00]} Nd6 {[%emt 0:00:00][%cal Rd6b5] Black is more active.} 20. Nf3 {[%emt 0:02:00]} (20. Nb3 $17) 20... Bxb5 {[%emt 0:00:00]} 21. axb5 {[%emt 0:00:00]} Qxb5 {[%emt 0:00:00]} 22. Qb1 {[%emt 0:00:00]} (22. Qd1 $17) 22... Ne4 {[%emt 0:02:00]} (22... Qxe2 23. Rfe1 Rxc1 24. Bxc1 $15) 23. Qd3 {[%emt 0:00:00]} Qxd3 {[%emt 0:00:00]} 24. exd3 {[%emt 0:00:00]} Nd6 {[%emt 0:00:00]} 25. Nxg5 {[%emt 0:02:30]} Bxg5 {[%emt 0:00:00]} ({Better is} 25... Rxc1 26. Rxc1 Rc8) 26. Bxg5 {[%emt 0:00:30]} Nb5 {[%emt 0:00:00]} 27. Be3 {[%emt 0:00:30]} (27. Rxc8 $142 Rxc8 28. Ra1) 27... a4 {[%emt 0:02:30]} (27... Rxc1 $1 $17 28. Rxc1 a4) 28. Bf3 {[%emt 0:00:00]} (28. Rb1 $15) 28... a3 {[%emt 0:00:00]} (28... Rxc1 $1 $19 {is more deadly.} 29. Rxc1 a3) 29. bxa3 {[%emt 0:00:00]} (29. Rb1 $17) 29... bxa3 {[%emt 0:00:00]} (29... Rxc1 $1 $19 30. Rxc1 bxa3) 30. Rb1 {[%emt 0:01:30]} Rb8 {[%emt 0:00:00]} 31. Rfc1 {[%emt 0:00:00] [#] Inhibits Nc3.} Rb6 {[%emt 0:02:00]} (31... Nc3 $142 $1 {[%mdl 512]} 32. Rxb8 (32. Ra1 Rb3) 32... Rxb8 33. Rxc3 a2) 32. Ra1 {[%emt 0:00:00]} Ra8 {[%emt 0:00:00]} 33. Ra2 {[%emt 0:01:30]} Nd6 {[%emt 0:00:00]} 34. Rc3 {[%emt 0:00:00]} (34. Rca1 $17 {keeps fighting.}) 34... Rb1+ $19 {[%emt 0:00:00]} 35. Kg2 {[%emt 0:00:00]} Nb5 {[%emt 0:00:00]} 36. Rcc2 {[%emt 0:00:40]} Nb6 {[%emt 0:00:00] aiming for ...Na4.} 37. h4 $2 {[%emt 0:00:28]} (37. Rc5) 37... Na4 {[%emt 0:00:00] ...Nac3 is the strong threat. Black is clearly winning.} 38. Rc1 {[%emt 0:00:44]} Rxc1 {[%emt 0:00:00]} 39. Bxc1 {[%emt 0:00:01]} Nac3 {[%emt 0:00:00]} (39... Nxd4 $2 {perishes.} 40. h5 $19 (40. Rxa3 $2 {too greedy.} Nc2 $19)) 40. Ra1 {[%emt 0:00:50]} (40. Rc2 $142) 40... a2 {[%emt 0:00:00]} ({Stronger than} 40... Nxd4 41. Rxa3 Rxa3 42. Bxa3 $17) 41. Bb2 {[%emt 0:30:11]} Ra4 {[%emt 0:35:00]} 42. Re1 {[%emt 0:00:00]} Rb4 {[%emt 0:00:00]} 43. Ba1 {[%emt 0:00:00]} Rb1 {[%emt 0:00:00]} 44. Kf1 {[%emt 0:00:00]} Na4 {[%emt 0:00:00] Pair of Knights!} 45. Ke2 {[%emt 0:00:00]} Na3 {[%emt 0:02:00] ( -> ...Nc2)} 46. Rd1 {[%emt 0:03:36]} Nc2 {[%emt 0:00:00] Weighted Error Value: White=0.92/Black=0.19 (very precise)} 0-1